[Event "WTCC-50 2018"]
[Site "Radebeul"]
[Date "2018.07.08"]
[Round "2"]
[White "Hutschenreiter, Joerg"]
[Black "Teo, Kok Siong"]
[Result "1-0"]
[ECO "A52"]
[WhiteElo "2023"]
[BlackElo "2213"]
[Annotator "NA"]
[PlyCount "67"]
[EventDate "2018.07.07"]
[EventType "team-tourn"]
[EventCountry "GER"]
[SourceTitle "playchess.com"]
[Source "ChessBase"]
[SourceQuality "1"]
[TimeControl "40/5400+30:1800+30"]

1. d4 {[%emt 0:00:00]} Nf6 {[%emt 0:00:00]} 2. c4 {[%emt 0:00:00]} e5 {[%emt 0:03:35]} 3. dxe5 {[%emt 0:00:11]} Ng4 {[%emt 0:00:09]} 4. Nf3 {[%emt 0:00:05]} Nc6 {[%emt 0:00:45]} 5. e3 {[%emt 0:02:28]} Bb4+ {[%emt 0:00:55]} 6. Bd2 {[%emt 0:01:32]} a5 {[%emt 0:16:50]} 7. Nc3 {[%emt 0:04:12]} O-O {[%emt 0:02:50]} 8. a3 {[%emt 0:02:36]} Bc5 {[%emt 0:01:13]} 9. Ne4 {[%emt 0:03:46]} Qe7 {[%emt 0:01:07]} 10. Nxc5 {[%emt 0:05:17]} Qxc5 {[%emt 0:00:19]} 11. Bc3 {[%emt 0:00:10]} Re8 {[%emt 0:04:25]} 12. Qd5 {[%emt 0:06:56]} Qe7 {[%emt 0:32:41]} 13. Be2 {[%emt 0:08:29]} a4 {[%emt 0:18:54]} 14. O-O {[%emt 0:09:42]} Ngxe5 {[%emt 0:00:27]} 15. Nxe5 {[%emt 0:03:05]} Nxe5 {[%emt 0:00:06]} 16. Qd4 {[%emt 0:01:08]} d6 {[%emt 0:01:08]} 17. Rad1 {[%emt 0:01:26]} Be6 {[%emt 0:02:08]} 18. c5 {[%emt 0:02:48]} Bb3 {[%emt 0:00:15]} 19. cxd6 {[%emt 0:00:19]} cxd6 {[%emt 0:02:33]} 20. Rd2 {[%emt 0:00:58]} f6 {[%emt 0:02:45]} 21. Bd1 {[%emt 0:19:56]} Bc4 {[%emt 0:01:37]} 22. Re1 {[%emt 0:00:02]} d5 {[%emt 0:01:42]} 23. Bc2 {[%emt 0:01:40]} Qe6 {[%emt 0:02:15]} 24. Qh4 {[%emt 0:02:50]} f5 {[%emt 0:01:31]} 25. Qf4 {[%emt 0:01:28]} g6 {[%emt 0:00:25]} 26. Qd4 {[%emt 0:00:05]} Kf8 {[%emt 0:01:27]} 27. f4 {[%emt 0:03:37]} Nf7 {[%emt 0:00:03]} 28. Qg7+ {[%emt 0:03:28]} Ke7 {[%emt 0:00:01]} 29. Bb4+ {[%emt 0:00:12]} Kd7 {[%emt 0:00:33]} 30. Qd4 {[%emt 0:03:11]} Kc7 {[%emt 0:00:22]} 31. Bd3 {[%emt 0:01:40]} b5 {[%emt 0:00:12]} 32. Bxc4 {[%emt 0:01:03]} dxc4 {[%emt 0:00:02]} 33. Red1 {[%emt 0:00:55]} Rac8 {[%emt 0:02:38]} 34. Qa7+ {[%emt 0:02:06]} 1-0

[Event "WTCC-50 2018"]
[Site "Radebeul"]
[Date "2018.07.08"]
[Round "2"]
[White "Cordes, Steffen"]
[Black "Ruether, Rudolf"]
[Result "1/2-1/2"]
[ECO "C05"]
[WhiteElo "1974"]
[BlackElo "2118"]
[Annotator "NA"]
[PlyCount "55"]
[EventDate "2018.07.07"]
[EventType "team-tourn"]
[EventCountry "GER"]
[SourceTitle "playchess.com"]
[Source "ChessBase"]
[SourceQuality "1"]
[TimeControl "40/5400+30:1800+30"]

1. e4 {[%emt 0:00:00]} e6 {[%emt 0:00:00]} 2. d4 {[%emt 0:00:00]} d5 {[%emt 0:00:02]} 3. Nd2 {[%emt 0:00:00]} Nf6 {[%emt 0:00:47]} 4. e5 {[%emt 0:00:06]} Nfd7 {[%emt 0:00:16]} 5. Bd3 {[%emt 0:00:13]} c5 {[%emt 0:00:32]} 6. c3 {[%emt 0:00:06]} Nc6 {[%emt 0:01:24]} 7. Ngf3 {[%emt 0:00:12]} Be7 {[%emt 0:10:35]} 8. O-O {[%emt 0:00:37]} cxd4 {[%emt 0:11:07]} 9. cxd4 {[%emt 0:00:29]} O-O {[%emt 0:00:09]} 10. Re1 {[%emt 0:02:01]} f6 {[%emt 0:10:25]} 11. exf6 {[%emt 0:00:43]} Nxf6 {[%emt 0:00:07]} 12. Nf1 {[%emt 0:01:17]} Bd6 {[%emt 0:07:38]} 13. Bg5 $11 {[%emt 0:00:50]} ({Lieber} 13. a3 $14) 13... Bd7 {[%emt 0:02:51]} 14. Bh4 {[%emt 0:01:37]} Qc7 {[%emt 0:01:52]} 15. Bg3 {[%emt 0:00:18]} Rae8 {[%emt 0:00:20]} 16. Rc1 {[%emt 0:02:18]} Bxg3 {[%emt 0:06:56]} 17. Nxg3 {[%emt 0:01:45]} Qf4 {[%emt 0:02:41]} 18. Bb1 {[%emt 0:16:55]} e5 {[%emt 0:06:19]} 19. dxe5 {[%emt 0:01:55]} Nxe5 {[%emt 0:00:17]} 20. Nxe5 {[%emt 0:01:17]} Rxe5 {[%emt 0:03:11]} 21. Rxe5 Qxe5 {[%emt 0:00:10]} 22. Qb3 {[%emt 0:16:08]} Bc6 {[%emt 0:04:19]} 23. h3 {[%emt 0:13:49]} g6 {[%emt 0:07:27]} 24. Rd1 {[%emt 0:08:33]} Kg7 {[%emt 0:02:16]} 25. Qc2 {[%emt 0:05:47]} Re8 {[%emt 0:02:32]} 26. Qd2 {[%emt 0:05:09]} Nh5 {[%emt 0:08:34]} 27. Nxh5+ {[%emt 0:02:06]} Qxh5 {[%emt 0:00:08]} 28. Re1 {[%emt 0:04:32]} 1/2-1/2

[Event "WTCC-50 2018"]
[Site "Radebeul"]
[Date "2018.07.08"]
[Round "2"]
[White "Eriksson, Urban"]
[Black "Barron, Michael"]
[Result "0-1"]
[ECO "A88"]
[WhiteElo "1875"]
[BlackElo "2123"]
[Annotator "NA"]
[PlyCount "86"]
[EventDate "2018.07.07"]
[EventType "team-tourn"]
[EventCountry "GER"]
[SourceTitle "playchess.com"]
[Source "ChessBase"]
[SourceQuality "1"]
[TimeControl "40/5400+30:1800+30"]

1. Nf3 {[%emt 0:00:00]} f5 {[%emt 0:00:00]} 2. g3 {[%emt 0:00:00]} Nf6 {[%emt 0:00:00]} 3. c4 {[%emt 0:00:05]} d6 {[%emt 0:00:01]} 4. d4 {[%emt 0:00:14]} g6 {[%emt 0:00:05]} 5. Bg2 {[%emt 0:00:06]} Bg7 {[%emt 0:00:03]} 6. Nc3 {[%emt 0:00:34]} O-O {[%emt 0:00:21]} 7. O-O {[%emt 0:00:13]} c6 {[%emt 0:00:41]} 8. d5 {[%emt 0:04:51]} Bd7 {[%emt 0:02:32]} 9. h3 {[%emt 0:07:10] A88: Dutch Defence: Leningrad System: 5 Nf3 0-0 6 0-0 d6 7 Nc3 c6} (9. Nd4 c5 10. Nf3 Na6 11. Re1 Nc7 12. a4 h6 13. e4 fxe4 14. Nxe4 Nxe4 15. Rxe4 Rf7 16. Re1 e6 17. dxe6 Bxe6 {0-1 (31) Xu,J (2504)-Lu,S (2620) China 2017}) 9... Na6 {[%emt 0:00:19]} 10. Be3 {[%emt 0:04:55]} Nc7 $146 {[%emt 0:00:58]} ({Predecessor:} 10... c5 11. Nd2 Nc7 12. a4 Nh5 13. Bf4 Nxf4 14. gxf4 b6 15. e3 a6 16. Qf3 b5 {0-1 (33) Fernandez Alonso,M-Tovillas,D (2345) Mar del Plata 1993}) 11. Qd2 {[%emt 0:03:10]} Qe8 {[%emt 0:01:55]} 12. Rad1 {[%emt 0:00:46]} c5 {[%emt 0:01:19]} 13. Bh6 {[%emt 0:03:52]} b5 {[%emt 0:00:03]} 14. Bxg7 {[%emt 0:01:22]} Kxg7 {[%emt 0:00:02]} 15. cxb5 {[%emt 0:06:17]} Bxb5 {[%emt 0:00:19]} 16. Nxb5 {[%emt 0:08:18]} Qxb5 {[%emt 0:00:03]} 17. Ne1 {[%emt 0:08:24]} a5 {[%emt 0:00:59]} 18. Nd3 {[%emt 0:03:49]} Rab8 {[%emt 0:03:54]} 19. b3 {[%emt 0:06:02]} Ncxd5 {[%emt 0:01:19]} 20. Bxd5 {[%emt 0:00:29]} Nxd5 {[%emt 0:03:46]} 21. Nxc5 $11 {[%emt 0:00:39]} Qxc5 {[%emt 0:00:05]} 22. Qxd5 {[%emt 0:00:12]} Qxd5 {[%emt 0:01:29]} 23. Rxd5 {[%emt 0:00:04]} a4 {[%emt 0:00:10]} 24. Rb1 {[%emt 0:01:31]} Rb4 {[%emt 0:08:45]} 25. a3 {[%emt 0:01:11]} Rxb3 {[%emt 0:00:04]} 26. Rxb3 {[%emt 0:00:09]} axb3 {[%emt 0:00:06]} 27. Rb5 {[%emt 0:00:06]} Rc8 {[%emt 0:00:57]} 28. Rxb3 {[%emt 0:00:16]} Rc2 {[%emt 0:00:05]} 29. Kf1 {[%emt 0:05:41]} Kf6 {[%emt 0:00:12]} 30. a4 {[%emt 0:01:09]} Ra2 {[%emt 0:00:04]} 31. Rb4 {[%emt 0:00:07]} e5 {[%emt 0:08:08]} 32. Rb6 {[%emt 0:05:32]} Ke6 {[%emt 0:00:05]} 33. Rb7 {[%emt 0:00:59]} Rxa4 {[%emt 0:02:28]} 34. Rxh7 {[%emt 0:00:08]} d5 {[%emt 0:00:24]} 35. e3 {[%emt 0:05:49]} d4 {[%emt 0:02:49]} 36. exd4 {[%emt 0:01:12]} exd4 {[%emt 0:00:02]} 37. Rg7 {[%emt 0:00:38]} d3 {[%emt 0:05:07]} 38. Ke1 {[%emt 0:00:52]} Ra2 {[%emt 0:00:04]} 39. Rxg6+ {[%emt 0:01:09]} Kd5 {[%emt 0:02:02]} 40. Rg8 {[%emt 0:14:56]} Re2+ {[%emt 0:01:01]} 41. Kf1 {[%emt 0:32:13]} Kc4 {[%emt 0:33:23]} 42. Rc8+ Kb3 {[%emt 0:00:05]} 43. Rc1 {[%emt 0:01:45]} Re8 {[%emt 0:02:10]} 0-1